fUST/lending_fUST_20250717
["ID","MTS","AMOUNT","RATE_DAILY","PERIOD"]
[372574560,1752688255525,-460.0,0.00022191,2]
[372574562,1752688255535,-1515.0,0.00022192,2]
[372574564,1752688255544,-500.0,0.00022192,2]
[372574566,1752688255553,-239.5938891,0.00022192,2]
[372574568,1752688255563,-160.0,0.00022292,5]
[372574570,1752688255572,-524.47621763,0.00022366,2]
[372574572,1752688255582,-4740.75034338,0.00022383,7]
[372574574,1752688255591,-429.1687796,0.00022387,2]
[372574576,1752688255600,-429.1687796,0.00022387,2]
[372574578,1752688255610,-232.87420986,0.0002239,2]
[372574580,1752688255619,-5703.20033673,0.0002239,2]
[372574582,1752688255629,-158.02,0.0002239,4]
[372574584,1752688255638,-159.13,0.0002239,4]
[372574586,1752688255648,-3020.13106276,0.00022413,2]
[372574588,1752688255658,-1500.0,0.00022434,2]
[372574590,1752688255667,-523.25395318,0.0002246,2]
[372574592,1752688255676,-460.0,0.00022465,2]
[372574594,1752688255687,-460.0,0.00022465,2]
[372574596,1752688255695,-460.0,0.00022465,2]
[372574598,1752688255708,-600.45,0.00022465,2]
[372574600,1752688255717,-596.59,0.00022465,2]
[372574602,1752688255727,-460.0,0.00022465,2]
[372574604,1752688255736,-460.0,0.00022465,2]
[372574606,1752688255746,-624.56,0.00022465,2]
[372574608,1752688255755,-460.0,0.00022465,2]
[372574610,1752688255764,-554.36,0.00022465,2]
[372574612,1752688255773,-786.47,0.00022465,2]
[372574614,1752688255783,-192.879379,0.00022465,2]
[372574616,1752688255792,-460.0,0.00022465,2]
[372574618,1752688255801,-460.0,0.00022465,2]
[372574620,1752688255810,-760.28,0.00022465,2]
[372574622,1752688255820,-478.28,0.00022465,2]
[372574624,1752688255829,-470.56,0.00022465,2]
[372574626,1752688255838,-2137.35,0.00022465,2]
[372574628,1752688255848,-460.0,0.00022465,2]
[372574630,1752688255857,-708.56,0.00022465,2]
[372574632,1752688255867,-500.0,0.00022465,2]
[372574634,1752688255876,-1175.79,0.00022465,2]
[372574636,1752688255886,-3570.7,0.00022465,2]
[372574638,1752688255895,-5372.59,0.00022465,2]
[372574640,1752688255904,-527.31,0.00022465,2]
[372574642,1752688255913,-460.0,0.00022465,2]
[372574644,1752688255922,-726.6,0.00022465,2]
[372574645,1752688255931,-809.14,0.00022465,2]
[372574647,1752688255940,-791.87,0.00022465,2]
[372574649,1752688255951,-1554.88,0.00022465,2]
[372574651,1752688255960,-1800.6,0.00022465,2]
[372574653,1752688255969,-1847.47,0.00022465,2]
[372574655,1752688255979,-606.46,0.00022465,2]
[372574657,1752688255988,-600.55,0.00022465,2]
[372574659,1752688255998,-460.0,0.00022465,2]
[372574661,1752688256008,-1191.96,0.00022465,2]
[372574663,1752688256017,-614.57,0.00022465,2]
[372574665,1752688256027,-460.0,0.00022465,2]
[372574667,1752688256038,-2298.96,0.00022465,2]
[372574669,1752688256051,-460.0,0.00022465,2]
[372574671,1752688256060,-460.0,0.00022465,2]
[372574673,1752688256070,-605.02,0.00022465,2]
[372574675,1752688256080,-1948.37,0.00022465,2]
[372574677,1752688256090,-592.12,0.00022465,2]
[372574679,1752688256099,-460.0,0.00022465,2]
[372574681,1752688256110,-499.91,0.00022465,2]
[372574683,1752688256120,-684.0,0.00022465,2]
[372574685,1752688256130,-460.0,0.00022465,2]
[372574687,1752688256139,-4453.58,0.00022465,2]
[372574689,1752688256149,-1869.31,0.00022465,2]
[372574691,1752688256159,-2023.44,0.00022465,2]
[372574693,1752688256169,-2494.58,0.00022465,2]
[372574695,1752688256178,-1091.01,0.00022465,2]
[372574697,1752688256187,-460.0,0.00022465,2]
[372574699,1752688256197,-755.95,0.00022465,2]
[372574701,1752688256210,-460.0,0.00022465,2]
[372574703,1752688256220,-1561.59,0.00022465,2]
[372574705,1752688256229,-460.0,0.00022465,2]
[372574707,1752688256239,-460.0,0.00022465,2]
[372574709,1752688256248,-1515.0,0.00022466,2]
[372574711,1752688256259,-500.0,0.00022466,2]
[372574713,1752688256268,-150.0,0.00022473,2]
[372574715,1752688256277,-2561.55421399,0.0002249,2]
[372574717,1752688256286,-481328.09987995,0.0002249,7]
[372574733,1752688256426,-3431.52386177,0.0002249,7]
[372574735,1752688256438,-21054.07855027,0.0002249,7]
[372574737,1752688256453,-491.03021328,0.0002249,7]
[372574739,1752688256464,-1309.39145183,0.0002249,7]
[372574742,1752688256476,-17003.62574465,0.0002249,7]
[372574765,1752688256699,-496.68,0.00019178,2]
[372574767,1752688256710,-460.0,0.00019178,2]
[372574769,1752688256720,-789.54,0.00019452,2]
[372574771,1752688256729,-435.3066109,0.00019452,2]
[372574785,1752688256851,-422.748628,0.00019178,2]
[372574787,1752688256867,-37.251372,0.00019178,2]
[372574789,1752688256876,-314.904692,0.00019178,2]
[372575109,1752689069930,21035.512112,0.0002739,120]
[372575123,1752689406134,217.585855,0.00018384,2]
[372575243,1752689436924,-292.0,0.00019176,2]
[372575244,1752689436935,-300.0,0.00019176,2]
[372575245,1752689436945,-300.0,0.00019176,2]
[372575246,1752689436955,-300.0,0.00019176,2]
[372575247,1752689436965,-500.0,0.00019177,2]
[372575248,1752689436976,-318.15512769,0.00019177,2]
[372575249,1752689436986,-577.20967147,0.00019177,2]
[372575250,1752689436996,-500.0,0.00019177,2]
[372575251,1752689437007,-500.0,0.00019177,2]
[372575252,1752689437017,-269.73258817,0.00019177,2]
[372575253,1752689437027,-500.0,0.00019177,2]
[372575254,1752689437038,-500.0,0.00019177,2]
[372575255,1752689437050,-500.0,0.00019177,2]
[372575256,1752689437060,-420.07735818,0.00019177,2]
[372575258,1752689437070,-515.11934342,0.00019177,2]
[372575260,1752689437080,-460.0,0.00019178,2]
[372575261,1752689437090,-460.0,0.00019178,2]
[372575262,1752689437100,-460.0,0.00019178,2]
[372575263,1752689437110,-460.0,0.00019178,2]
[372575264,1752689437120,-460.0,0.00019178,2]
[372575265,1752689437130,-460.0,0.00019178,2]
[372575266,1752689437140,-460.0,0.00019178,2]
[372575267,1752689437150,-460.0,0.00019178,2]
[372575268,1752689437160,-295.11044533,0.00019178,2]
[372575269,1752689437170,-460.0,0.00019178,2]
[372575270,1752689437180,-460.0,0.00019178,2]
[372575271,1752689437189,-460.0,0.00019178,2]
[372575272,1752689437199,-460.0,0.00019178,2]
[372575273,1752689437209,-460.0,0.00019178,2]
[372575274,1752689437220,-551.95853096,0.00019178,2]
[372575275,1752689437231,-460.0,0.00019178,2]
[372575276,1752689437241,-460.0,0.00019178,2]
[372575277,1752689437251,-460.0,0.00019178,2]
[372575278,1752689437264,-418.1351885,0.00019178,2]
[372575279,1752689437277,-119.43765627,0.00019178,2]
[372575280,1752689437287,-460.0,0.00019178,2]
[372575281,1752689437297,-243.95997708,0.00019178,2]
[372575282,1752689437306,-13.42736665,0.00019178,2]
[372575283,1752689437317,-471.26602245,0.00019178,2]
[372575284,1752689437326,-462.87,0.00019178,2]
[372575285,1752689437336,-86.53646065,0.00019178,2]
[372575286,1752689437347,-373.46353935,0.00019178,2]
[372575287,1752689437357,-460.0,0.00019178,2]
[372575288,1752689437366,-460.0,0.00019178,2]
[372575289,1752689437376,-460.0,0.00019178,2]
[372575290,1752689437386,-460.0,0.00019178,2]
[372575291,1752689437398,-460.0,0.00019178,2]
[372575292,1752689437408,-460.0,0.00019178,2]
[372575293,1752689437418,-460.0,0.00019178,2]
[372575294,1752689437427,-6.82203907,0.00019178,2]
[372575295,1752689437441,-493.17796093,0.00019178,2]
[372575296,1752689437451,-500.0,0.00019178,2]
[372575297,1752689437460,-274.18344191,0.00019178,2]
[372575298,1752689437474,-343.02304739,0.00019178,2]
[372575299,1752689437484,-460.0,0.00019178,2]
[372575300,1752689437494,-270.86260674,0.00019178,2]
[372575301,1752689437506,-189.13739326,0.00019178,2]
[372575302,1752689437516,-460.0,0.00019178,2]
[372575303,1752689437527,-245.16830943,0.00019178,2]
[372575304,1752689437536,-582.88,0.00019178,2]
[372575305,1752689437545,-460.0,0.00019178,2]
[372575306,1752689437554,-460.0,0.00019178,2]
[372575307,1752689437564,-460.0,0.00019178,2]
[372575308,1752689437574,-334.7933207,0.00019178,2]
[372575309,1752689437583,-460.0,0.00019178,2]
[372575310,1752689437593,-460.0,0.00019178,2]
[372575311,1752689437603,-198.11978747,0.00019178,2]
[372575312,1752689437615,-261.88021253,0.00019178,2]
[372575313,1752689437625,-460.0,0.00019178,2]
[372575314,1752689437635,-460.0,0.00019178,2]
[372575315,1752689437645,-460.0,0.00019178,2]
[372575316,1752689437655,-364.44,0.00019178,2]
[372575317,1752689437665,-460.0,0.00019178,2]
[372575318,1752689437674,-460.0,0.00019178,2]
[372575319,1752689437684,-509.49138637,0.00019178,2]
[372575320,1752689437694,-460.0,0.00019178,2]
[372575322,1752689437704,-460.0,0.00019178,2]
[372575323,1752689437713,-460.0,0.00019178,2]
[372575324,1752689437724,-470.99,0.00019178,2]
[372575325,1752689437733,-460.0,0.00019178,2]
[372575326,1752689437746,-509.4,0.00019178,2]
[372575327,1752689437756,-460.0,0.00019178,2]
[372575328,1752689437765,-460.0,0.00019178,2]
[372575329,1752689437775,-245.41930482,0.00019178,2]
[372575332,1752689437784,-460.0,0.00019178,2]
[372575334,1752689437793,-460.0,0.00019178,2]
[372575336,1752689437803,-460.0,0.00019178,2]
[372575337,1752689437813,-599.35030948,0.00019178,2]
[372575338,1752689437822,-460.0,0.00019178,2]
[372575340,1752689437832,-460.0,0.00019178,2]
[372575342,1752689437841,-460.0,0.00019178,2]
[372575343,1752689437851,-460.0,0.00019178,2]
[372575345,1752689437860,-571.89,0.00019178,2]
[372575347,1752689437869,-460.0,0.00019178,2]
[372575349,1752689437879,-460.0,0.00019178,2]
[372575350,1752689437889,-460.0,0.00019178,2]
[372575351,1752689437898,-460.0,0.00019178,2]
[372575352,1752689437907,-460.0,0.00019178,2]
[372575353,1752689437916,-460.0,0.00019178,2]
[372575354,1752689437925,-277.47721017,0.00019178,2]
[372575355,1752689437935,-460.0,0.00019178,2]
[372575357,1752689437944,-460.0,0.00019178,2]
[372575359,1752689437953,-460.0,0.00019178,2]
[372575361,1752689437963,-504.17,0.00019178,2]
[372575363,1752689437973,-460.0,0.00019178,2]
[372575365,1752689437983,-460.0,0.00019178,2]
[372575368,1752689438001,-460.0,0.00019178,2]
[372575370,1752689438011,-460.0,0.00019178,2]
[372575373,1752689438021,-460.0,0.00019178,2]
[372575375,1752689438031,-332.27995116,0.00019178,2]
[372575395,1752689438214,-349.60004884,0.00019178,2]
[372575397,1752689438226,-460.0,0.00019178,2]
[372575399,1752689438235,-107.43038107,0.00019178,2]
[372575402,1752689438247,-487.70961893,0.00019178,2]
[372575404,1752689438258,-325.35180671,0.00019178,2]
[372575406,1752689438271,-522.71292882,0.00019178,2]
[372575408,1752689438282,-821.12526447,0.00019178,2]
[372575410,1752689438292,-723.74,0.00019178,2]
[372575412,1752689438302,-460.0,0.00019178,2]
[372575414,1752689438312,-460.0,0.00019178,2]
[372575416,1752689438322,-460.0,0.00019178,2]
[372575418,1752689438331,-424.13473554,0.00019178,2]
[372575421,1752689438343,-35.86526446,0.00019178,2]
[372575423,1752689438353,-460.0,0.00019178,2]
[372575425,1752689438363,-460.0,0.00019178,2]
[372575427,1752689438372,-460.0,0.00019178,2]
[372575429,1752689438381,-460.0,0.00019178,2]
[372575430,1752689438393,-460.0,0.00019178,2]
[372575433,1752689438403,-460.0,0.00019178,2]
[372575435,1752689438413,-460.0,0.00019178,2]
[372575437,1752689438422,-344.73350716,0.00019178,2]
[372575439,1752689438432,-460.0,0.00019178,2]
[372575442,1752689438442,-460.0,0.00019178,2]
[372575444,1752689438451,-460.0,0.00019178,2]
[372575446,1752689438460,-594.03,0.00019178,2]
[372575448,1752689438472,-460.0,0.00019178,2]
[372575450,1752689438481,-512.38,0.00019178,2]
[372575452,1752689438491,-1150.66,0.00019178,2]
[372575454,1752689438501,-460.0,0.00019178,2]
[372575456,1752689438511,-1223.14,0.00019178,2]
[372575458,1752689438521,-460.0,0.00019178,2]
[372575460,1752689438530,-460.0,0.00019178,2]
[372575462,1752689438540,-460.0,0.00019178,2]
[372575464,1752689438549,-460.0,0.00019178,2]
[372575466,1752689438559,-2567.82,0.00019178,2]
[372575468,1752689438569,-460.0,0.00019178,2]
[372575470,1752689438579,-460.0,0.00019178,2]
[372575472,1752689438589,-460.0,0.00019178,2]
[372575474,1752689438599,-460.0,0.00019178,2]
[372575476,1752689438608,-460.0,0.00019178,2]
[372575478,1752689438618,-2072.8,0.00019178,2]
[372575480,1752689438628,-460.0,0.00019178,2]
[372575482,1752689438638,-1079.17,0.00019178,2]
[372575484,1752689438648,-460.0,0.00019178,2]
[372575486,1752689438657,-460.0,0.00019178,2]
[372575488,1752689438666,-607.16,0.00019178,2]
[372575490,1752689438676,-460.0,0.00019178,2]
[372575492,1752689438685,-460.0,0.00019178,2]
[372575494,1752689438695,-460.0,0.00019178,2]
[372575496,1752689438705,-3957.81,0.00019178,2]
[372575498,1752689438715,-460.0,0.00019178,2]
[372575500,1752689438726,-182.06,0.00019178,2]
[372575502,1752689438735,-460.0,0.00019178,2]
[372575504,1752689438744,-460.0,0.00019178,2]
[372575505,1752689438754,-460.0,0.00019178,2]
[372575507,1752689438764,-460.0,0.00019178,2]
[372575508,1752689438773,-850.37,0.00019178,2]
[372575510,1752689438783,-462.13,0.00019178,2]
[372575512,1752689438793,-460.0,0.00019178,2]
[372575513,1752689438802,-460.0,0.00019178,2]
[372575515,1752689438812,-460.0,0.00019178,2]
[372575517,1752689438822,-460.0,0.00019178,2]
[372575519,1752689438831,-541.31869225,0.00019178,2]
[372575520,1752689438841,-460.0,0.00019178,2]
[372575522,1752689438850,-460.0,0.00019178,2]
[372575523,1752689438859,-460.0,0.00019178,2]
[372575524,1752689438869,-466.44,0.00019178,2]
[372575526,1752689438879,-460.0,0.00019178,2]
[372575527,1752689438889,-460.0,0.00019178,2]
[372575528,1752689438898,-3089.51,0.00019178,2]
[372575529,1752689438908,-460.0,0.00019178,2]
[372575530,1752689438917,-460.0,0.00019178,2]
[372575531,1752689438927,-894.41,0.00019178,2]
[372575532,1752689438936,-1994.35,0.00019178,2]
[372575533,1752689438946,-460.0,0.00019178,2]
[372575534,1752689438957,-460.0,0.00019178,2]
[372575535,1752689438966,-460.0,0.00019178,2]
[372575536,1752689438977,-460.0,0.00019178,2]
[372575537,1752689438987,-460.0,0.00019178,2]
[372575538,1752689438997,-1626.4,0.00019178,2]
[372575539,1752689439007,-506.24,0.00019178,2]
[372575540,1752689439016,-1747.87,0.00019178,2]
[372575541,1752689439027,-460.0,0.00019178,2]
[372575542,1752689439036,-460.0,0.00019178,2]
[372575543,1752689439046,-460.0,0.00019178,2]
[372575544,1752689439055,-517.70298011,0.00019178,2]
[372575545,1752689439065,-460.0,0.00019178,2]
[372575546,1752689439074,-1316.69,0.00019178,2]
[372575547,1752689439084,-386.14832795,0.00019178,2]
[372575548,1752689439093,-975.99,0.00019178,2]
[372575549,1752689439103,-460.0,0.00019178,2]
[372575550,1752689439112,-460.0,0.00019178,2]
[372575551,1752689439121,-460.0,0.00019178,2]
[372575552,1752689439131,-460.0,0.00019178,2]
[372575553,1752689439140,-1264.65,0.00019178,2]
[372575554,1752689439150,-937.64,0.00019178,2]
[372575555,1752689439160,-460.0,0.00019178,2]
[372575556,1752689439170,-460.0,0.00019178,2]
[372575557,1752689439180,-460.0,0.00019178,2]
[372575558,1752689439190,-460.0,0.00019178,2]
[372575559,1752689439199,-460.0,0.00019178,2]
[372575560,1752689439209,-460.0,0.00019178,2]
[372575561,1752689439221,-460.0,0.00019178,2]
[372575562,1752689439230,-460.0,0.00019178,2]
[372575563,1752689439240,-166.821697,0.00019178,2]
[372575564,1752689439250,-460.0,0.00019452,2]
[372575565,1752689439259,-460.0,0.00019452,2]
[372575566,1752689439269,-460.0,0.00019452,2]
[372575567,1752689439279,-267.75515917,0.00019452,2]
[372575568,1752689439289,-460.0,0.00019452,2]
[372575569,1752689439299,-460.0,0.00019452,2]
[372575570,1752689439308,-460.0,0.00019452,2]
[372575571,1752689439318,-460.0,0.00019452,2]
[372575572,1752689439328,-460.0,0.00019452,2]
[372575573,1752689439338,-460.0,0.00019452,2]
[372575574,1752689439347,-460.0,0.00019452,2]
[372575575,1752689439357,-460.0,0.00019452,2]
[372575576,1752689439367,-512.75,0.00019452,2]
[372575577,1752689439376,-460.0,0.00019452,2]
[372575578,1752689439386,-460.0,0.00019452,2]
[372575579,1752689439399,-460.0,0.00019452,2]
[372575580,1752689439409,-460.0,0.00019452,2]
[372575581,1752689439421,-460.0,0.00019452,2]
[372575582,1752689439431,-470.99,0.00019452,2]
[372575583,1752689439442,-460.0,0.00019452,2]
[372575584,1752689439454,-509.4,0.00019452,2]
[372575585,1752689439465,-460.0,0.00019452,2]
[372575586,1752689439491,-460.0,0.00019452,2]
[372575587,1752689439502,-460.0,0.00019452,2]
[372575588,1752689439513,-460.0,0.00019452,2]
[372575589,1752689439525,-460.0,0.00019452,2]
[372575590,1752689439540,-571.89,0.00019452,2]
[372575591,1752689439552,-600.35,0.00019452,2]
[372575592,1752689439563,-460.0,0.00019452,2]
[372575593,1752689439574,-460.0,0.00019452,2]
[372575594,1752689439585,-460.0,0.00019452,2]
[372575595,1752689439595,-504.17,0.00019452,2]
[372575596,1752689439605,-460.0,0.00019452,2]
[372575597,1752689439823,-460.0,0.00019452,2]
[372575598,1752689439834,-681.88,0.00019452,2]
[372575599,1752689439844,-595.14,0.00019452,2]
[372575600,1752689439854,-1669.19,0.00019452,2]
[372575601,1752689439863,-723.74,0.00019452,2]
[372575602,1752689439872,-460.0,0.00019452,2]
[372575603,1752689439882,-460.0,0.00019452,2]
[372575604,1752689439893,-460.0,0.00019452,2]
[372575605,1752689439902,-460.0,0.00019452,2]
[372575606,1752689439911,-436.14543181,0.00019452,2]
[372575607,1752689439920,-460.0,0.00019452,2]
[372575608,1752689439930,-460.0,0.00019452,2]
[372575609,1752689439939,-460.0,0.00019452,2]
[372575610,1752689439949,-460.0,0.00019452,2]
[372575611,1752689439959,-460.0,0.00019452,2]
[372575613,1752689439973,-460.0,0.00019452,2]
[372575615,1752689439982,-460.0,0.00019452,2]
[372575617,1752689439991,-460.0,0.00019452,2]
[372575618,1752689440000,-594.03,0.00019452,2]
[372575619,1752689440010,-460.0,0.00019452,2]
[372575621,1752689440019,-1150.66,0.00019452,2]
[372575622,1752689440029,-1223.14,0.00019452,2]
[372575623,1752689440038,-460.0,0.00019452,2]
[372575624,1752689440048,-460.0,0.00019452,2]
[372575625,1752689440058,-460.0,0.00019452,2]
[372575626,1752689440067,-2567.82,0.00019452,2]
[372575627,1752689440077,-460.0,0.00019452,2]
[372575628,1752689440087,-460.0,0.00019452,2]
[372575629,1752689440096,-2072.8,0.00019452,2]
[372575630,1752689440105,-460.0,0.00019452,2]
[372575631,1752689440115,-1079.17,0.00019452,2]
[372575632,1752689440125,-607.16,0.00019452,2]
[372575633,1752689440134,-460.0,0.00019452,2]
[372575634,1752689440144,-3957.81,0.00019452,2]
[372575635,1752689440154,-460.0,0.00019452,2]
[372575636,1752689440164,-460.0,0.00019452,2]
[372575637,1752689440173,-460.0,0.00019452,2]
[372575638,1752689440183,-460.0,0.00019452,2]
[372575639,1752689440193,-460.0,0.00019452,2]
[372575640,1752689440202,-850.37,0.00019452,2]
[372575641,1752689440212,-462.13,0.00019452,2]
[372575642,1752689440225,-460.0,0.00019452,2]
[372575643,1752689440234,-460.0,0.00019452,2]
[372575644,1752689440244,-460.0,0.00019452,2]
[372575645,1752689440254,-478.59,0.00019452,2]
[372575646,1752689440263,-460.0,0.00019452,2]
[372575647,1752689440272,-460.0,0.00019452,2]
[372575648,1752689440282,-466.44,0.00019452,2]
[372575649,1752689440291,-460.0,0.00019452,2]
[372575650,1752689440301,-460.0,0.00019452,2]
[372575651,1752689440311,-3089.51,0.00019452,2]
[372575652,1752689440320,-460.0,0.00019452,2]
[372575653,1752689440329,-460.0,0.00019452,2]
[372575654,1752689440339,-894.41,0.00019452,2]
[372575655,1752689440348,-1994.35,0.00019452,2]
[372575656,1752689440357,-460.0,0.00019452,2]
[372575657,1752689440367,-496.33,0.00019452,2]
[372575658,1752689440376,-460.0,0.00019452,2]
[372575659,1752689440386,-460.0,0.00019452,2]
[372575660,1752689440398,-460.0,0.00019452,2]
[372575661,1752689440409,-1626.4,0.00019452,2]
[372575662,1752689440418,-506.24,0.00019452,2]
[372575663,1752689440428,-1747.87,0.00019452,2]
[372575664,1752689440439,-460.0,0.00019452,2]
[372575665,1752689440448,-460.0,0.00019452,2]
[372575666,1752689440457,-460.0,0.00019452,2]
[372575667,1752689440466,-1316.69,0.00019452,2]
[372575668,1752689440481,-975.99,0.00019452,2]
[372575669,1752689440490,-460.0,0.00019452,2]
[372575670,1752689440499,-460.0,0.00019452,2]
[372575671,1752689440509,-460.0,0.00019452,2]
[372575672,1752689440518,-1264.65,0.00019452,2]
[372575673,1752689440527,-937.64,0.00019452,2]
[372575674,1752689440537,-460.0,0.00019452,2]
[372575675,1752689440547,-460.0,0.00019452,2]
[372575676,1752689440557,-460.0,0.00019452,2]
[372575677,1752689440567,-460.0,0.00019452,2]
[372575678,1752689440576,-460.0,0.00019726,2]
[372575679,1752689440585,-460.0,0.00019726,2]
[372575680,1752689440595,-460.0,0.00019726,2]
[372575681,1752689440604,-534.99080827,0.00019726,2]
[372575682,1752689440613,-460.0,0.00019726,2]
[372575683,1752689440622,-464.03,0.00019726,2]
[372575684,1752689440631,-460.0,0.00019726,2]
[372575685,1752689440640,-460.0,0.00019726,2]
[372575686,1752689440650,-460.0,0.00019726,2]
[372575687,1752689440659,-460.0,0.00019726,2]
[372575688,1752689440668,-460.0,0.00019726,2]
[372575689,1752689440677,-460.0,0.00019726,2]
[372575690,1752689440687,-470.99,0.00019726,2]
[372575691,1752689440696,-509.4,0.00019726,2]
[372575692,1752689440706,-371.29404419,0.00019726,2]
[372575693,1752689440715,-460.0,0.00019726,2]
[372575694,1752689440728,-460.0,0.00019726,2]
[372575695,1752689440738,-571.89,0.00019726,2]
[372575696,1752689440747,-460.0,0.00019726,2]
[372575697,1752689440756,-460.0,0.00019726,2]
[372575698,1752689440765,-460.0,0.00019726,2]
[372575699,1752689440774,-504.17,0.00019726,2]
[372575700,1752689440784,-460.0,0.00019726,2]
[372575701,1752689440793,-681.88,0.00019726,2]
[372575702,1752689440803,-595.14,0.00019726,2]
[372575703,1752689440812,-1669.19,0.00019726,2]
[372575704,1752689440821,-723.74,0.00019726,2]
[372575705,1752689440830,-460.0,0.00019726,2]
[372575706,1752689440840,-460.0,0.00019726,2]
[372575707,1752689440850,-460.0,0.00019726,2]
[372575708,1752689440859,-460.0,0.00019726,2]
[372575709,1752689440869,-460.0,0.00019726,2]
[372575710,1752689440878,-460.0,0.00019726,2]
[372575711,1752689440888,-460.0,0.00019726,2]
[372575712,1752689440897,-295.59,0.00019726,2]
[372575713,1752689440907,-460.0,0.00019726,2]
[372575714,1752689440916,-594.03,0.00019726,2]
[372575715,1752689440925,-460.0,0.00019726,2]
[372575716,1752689440935,-1150.66,0.00019726,2]
[372575717,1752689440944,-1223.14,0.00019726,2]
[372575718,1752689440953,-460.0,0.00019726,2]
[372575719,1752689440963,-460.0,0.00019726,2]
[372575720,1752689440975,-2567.82,0.00019726,2]
[372575721,1752689440984,-460.0,0.00019726,2]
[372575722,1752689440994,-460.0,0.00019726,2]
[372575723,1752689441003,-2072.8,0.00019726,2]
[372575724,1752689441012,-460.0,0.00019726,2]
[372575725,1752689441022,-1079.17,0.00019726,2]
[372575726,1752689441033,-607.16,0.00019726,2]
[372575727,1752689441043,-3957.81,0.00019726,2]
[372575728,1752689441052,-460.0,0.00019726,2]
[372575729,1752689441061,-460.0,0.00019726,2]
[372575730,1752689441070,-460.0,0.00019726,2]
[372575731,1752689441079,-460.0,0.00019726,2]
[372575732,1752689441089,-850.37,0.00019726,2]
[372575733,1752689441098,-462.13,0.00019726,2]
[372575734,1752689441107,-460.0,0.00019726,2]
[372575735,1752689441116,-460.0,0.00019726,2]
[372575736,1752689441126,-280.64463111,0.00019726,2]
[372575737,1752689441135,-466.44,0.00019726,2]
[372575738,1752689441145,-460.0,0.00019726,2]
[372575739,1752689441155,-460.0,0.00019726,2]
[372575740,1752689441165,-3089.51,0.00019726,2]
[372575741,1752689441174,-460.0,0.00019726,2]
[372575742,1752689441184,-460.0,0.00019726,2]
[372575743,1752689441194,-894.41,0.00019726,2]
[372575744,1752689441204,-1994.35,0.00019726,2]
[372575745,1752689441216,-460.0,0.00019726,2]
[372575747,1752689441230,-460.0,0.00019726,2]
[372575749,1752689441240,-1626.4,0.00019726,2]
[372575751,1752689441250,-506.24,0.00019726,2]
[372575752,1752689441260,-1747.87,0.00019726,2]
[372575754,1752689441270,-460.0,0.00019726,2]
[372575756,1752689441280,-460.0,0.00019726,2]
[372575758,1752689441290,-1316.69,0.00019726,2]
[372575760,1752689441303,-975.99,0.00019726,2]
[372575762,1752689441312,-460.0,0.00019726,2]
[372575764,1752689441322,-1264.65,0.00019726,2]
[372575766,1752689441331,-937.64,0.00019726,2]
[372575768,1752689441341,-460.0,0.00019726,2]
[372575770,1752689441351,-460.0,0.00019726,2]